Cogmind - Beta 14 @@@ ROGUE MODE // 2025.01.19 @ 23:53:42 Player: Maulwurf Result: Destroyed by as-55073 with Assembled Heavy Rifle Performance ------------- Evolutions (0) 0 Regions Visited (2) 400 Robots Destroyed (11) 55 Value Destroyed (372) 372 Prototype IDs (0) 0 Alien Tech Used (0) 0 Bonus (-67) -67 TOTAL SCORE: 760 Bonus ------- Friendly Fire -67 Cogmind --------- Core Integrity 0/250 Matter 201/300 Energy 100/100 System Corruption 6% Temperature Cool (0) Movement Core (500) Ox9 Location -10/Mines Parts ------- > --- POWER (1) -------- (None) > --- PROPULSION (2) --- (None) > --- UTILITY (2) ------ Small Storage Unit Large Storage Unit > --- WEAPON (2) ------- Rocket Launcher > --- INVENTORY (15) --- Ion Engine Light Ion Engine Light Ion Engine Aluminum Leg Aluminum Leg Aluminum Leg Improved Aluminum Leg Improved Aluminum Leg Decoy Drone Bay Light Assault Rifle Light Assault Rifle Rocket Launcher Peak State ------------ > --- POWER ------------ Ion Engine > --- PROPULSION ------- Improved Aluminum Leg Improved Aluminum Leg > --- UTILITY ---------- Small Storage Unit Large Storage Unit > --- WEAPON ----------- Medium Laser Datajack > --- INVENTORY -------- Ion Engine Light Ion Engine Light Ion Engine Aluminum Leg Aluminum Leg Aluminum Leg Improved Aluminum Leg Improved Aluminum Leg Decoy Drone Bay Assault Rifle Light Assault Rifle Light Assault Rifle Rocket Launcher Rocket Launcher [Rating: 12] Favorites ----------- Power Ion Engine Engine Ion Engine Propulsion Improved Aluminum Leg Leg Improved Aluminum Leg Wheel Wheel Utility Small Storage Unit Storage Small Storage Unit Weapon Medium Laser Energy Gun Medium Laser Ballistic Gun Assault Rifle Launcher Rocket Launcher Special Melee Weapon Datajack Build | -11 -10 -10 ------- Run | Yrd Mat Min Slots Evolved . | . . . Power . | . . . Propulsion . | . . . Utility . | . . . Weapon . | . . . Parts Attached 17 | 6 8 3 Power 3 | 1 2 . Engine 3 | 1 2 . Core . | . . . Reactor . | . . . Propulsion 6 | 2 4 . Treads . | . . . Leg 4 | . 4 . Wheel 2 | 2 . . Hover . | . . . Flight . | . . . Utility 2 | 1 1 . Device . | . . . Storage 2 | 1 1 . Processor . | . . . Hackware . | . . . Protection . | . . . Artifact . | . . . Weapon 6 | 2 1 3 Energy Gun 1 | 1 . . Energy Cannon . | . . . Ballistic Gun 3 | 1 1 1 Ballistic Cannon . | . . . Launcher 1 | . . 1 Special Weapon . | . . . Impact Weapon . | . . . Slashing Weapon . | . . . Piercing Weapon . | . . . Special Melee Weapon 1 | . . 1 Unidentified Prototypes . | . . . Parts Lost 7 | . 1 6 Power 2 | . 1 1 Propulsion 2 | . . 2 Utility . | . . . Weapon 3 | . . 3 Highest Loss Streak 6 | . 1 6 To Critical Strikes . | . . . Average Slot Usage (%) 98 | . 98 98 Engine 13 | . 13 13 Leg 24 | . 17 27 Wheel 3 | . 10 . Storage 27 | . 27 28 Energy Gun 13 | . 14 13 Ballistic Gun 11 | . 14 10 Special Melee Weapon 2 | . . 2 Peak Build Rating 12 | 6 10 12 Average Rating 9 | 4 8 10 On Entrance 5 | . 6 10 Naked Turns . | . . . Heaviest Build 34 | 11 34 34 Greatest Support 26 | 20 26 26 Greatest Overweight (x) 1 | . 1 1 Average Overweight (x) . | . . 1 Largest Inventory Capacity 15 | 8 15 15 Average Capacity 14 | 6 14 15 Most Carried 15 | 4 12 15 Average Carried 11 | 2 8 12 Final Capacity 15 | 8 15 15 Final Carried 13 | 4 12 13 Class Distribution -------------------- 100% | Mutant Dominant Class ---------------- Mutant | -10/Materials Mutant | -10/Mines Resources | -11 -10 -10 ----------- Run | Yrd Mat Min Matter Collected 468 | 175 191 102 Remotely . | . . . Salvage Created 485 | . 257 228 Parts 20 | . 18 2 Haulers Intercepted . | . . . Recyclers Shooed . | . . . Parts Field Recycled . | . . . Retrieved Matter . | . . . Parts Self-Destructed . | . . . Prevented . | . . . Kills | -11 -10 -10 ------- Run | Yrd Mat Min Combat Hostiles Destroyed 21 | . 5 16 Guns 10 | . 5 5 AOE 11 | . . 11 Classes Destroyed 4 | . 3 1 Worker 1 | . 1 . Operator 1 | . 1 . Grunt 9 | . 5 4 Assembled 12 | . . 12 Best Kill Streak 12 | . 5 12 Combat Bots Only 12 | . 3 12 Max Kills in Single Turn 2 | . 1 2 Gunslinging . | . . . Exploded 2 | . . 2 Melee . | . . . Uniques/NPCs Destroyed . | . . . Combat | -11 -10 -10 -------- Run | Yrd Mat Min Hostile Shots Fired 86 | . 23 63 Missed 24 | . 6 18 Damage Taken 941 | . 201 740 Core 260 | . 44 216 Absorbed by Shields . | . . . Core Remaining (%) 100 | 100 . . Volleys Fired 60 | . 27 33 Largest 2 | . 2 2 Hottest 70 | . 70 70 Shots Fired 112 | . 54 58 Gun 103 | . 54 49 Cannon . | . . . Launcher 9 | . . 9 Special . | . . . Kinetic 52 | . 27 25 Thermal 51 | . 27 24 Explosive 9 | . . 9 Electromagnetic . | . . . Robot Hit Streak 24 | . 14 24 Robot Miss Streak 4 | . 4 4 Penetration Max . | . . . Secondary Targets 2 | . 1 1 Max Gunslinging Chain 1 | . 1 1 Shots Hit Robots 87 | . 40 47 Core Hits 54 | . 18 36 Critical Kills . | . . . Critical Parts Destroyed . | . . . Critical Strikes 6 | . 4 2 Burn 6 | . 4 2 Melee Attacks 5 | . . 5 Impact . | . . . Slashing . | . . . Piercing . | . . . Sneak Attacks 4 | . . 4 Combat Hostiles . | . . . Follow-up Attacks . | . . . Damage Inflicted 1698 | . 425 1273 Guns 900 | . 412 488 Cannons . | . . . Explosions 784 | . . 784 Melee . | . . . Ramming 14 | . 13 1 Kinetic 413 | . 161 252 Thermal 487 | . 251 236 Explosive 784 | . . 784 Electromagnetic . | . . . Impact . | . . . Slashing . | . . . Piercing . | . . . Highest Corruption 6 | . 1 6 Average Corruption 1 | . 1 1 Corruption Purged . | . . . Corruption Blocked . | . . . Effects 12 | . 5 7 Message Errors 5 | . 3 2 Matter Fused 3 | . 1 2 Heat Flow Errors 2 | . 1 1 Energy Discharges 2 | . . 2 Overload Shots . | . . . Overflow Damage 12 | . . 12 Projectiles . | . . . Explosions 12 | . . 12 Melee . | . . . Knockbacks . | . . . Impact . | . . . Kinetic . | . . . Secondary . | . . . Self-Inflicted Damage 94 | . 6 88 Shots 4 | . . 4 Rammed 1 | . 1 . Targets Rammed 2 | . 1 1 Kicked 1 | . . 1 Crushed . | . . . Highest Temperature 204 | . 145 204 Average Temperature 69 | . 52 87 Received Heat Transfer 340 | . 108 232 Siege Activations . | . . . Robots Corrupted . | . . . Combat Hostiles . | . . . Parts Fried . | . . . Impact Corruptions . | . . . Robots Melted . | . . . Combat Hostiles . | . . . Parts Melted 2 | . 1 1 Heat Transferred 1887 | . 1036 851 Parts Sabotaged . | . . . Parts Stolen . | . . . Parts Stripped . | . . . Power Chain Reactions . | . . . Alert | -11 -10 -10 ------- Run | Yrd Mat Min Peak Influence 160 | . 160 100 Initial . | . . . Average 41 | . 103 15 Maximum Alert Level . | . . . Low Security (%) 100 | 100 100 100 Level 1 . | . . . Level 2 . | . . . Level 3 . | . . . Level 4 . | . . . Level 5 . | . . . High Security . | . . . Max Security . | . . . Squads Dispatched 2 | . 2 . Investigation 1 | . 1 . Extermination . | . . . Reinforcement 1 | . 1 . Assault . | . . . Garrison . | . . . Intercept . | . . . Searches Triggered . | . . . Construction Impeded . | . . . Haulers Reinforced . | . . . Active Scanning Responses . | . . . Cargo Convoy Interrupts . | . . . Stealth | -11 -10 -10 --------- Run | Yrd Mat Min Distress Signals 1 | . 1 . Communications Jammed . | . . . Distress Signals . | . . . Times Spotted 34 | . 12 22 Peak Tracking Total 8 | . 4 8 Tactical Retreats . | . . . Traps | -11 -10 -10 ------- Run | Yrd Mat Min Traps Triggered . | . . . Indirectly . | . . . Trap Hack Attempts . | . . . Triggered . | . . . Disarmed . | . . . Reprogrammed . | . . . Reused . | . . . Traps Extracted . | . . . Installed . | . . . Triggered . | . . . Machines | -11 -10 -10 ---------- Run | Yrd Mat Min Machines Disabled 1 | . . 1 Max in Single Turn 1 | . . 1 Machines Repaired . | . . . Machines Dismantled . | . . . Machines Sabotaged . | . . . Overloaded Fab Kills . | . . . Hacking | -11 -10 -10 --------- Run | Yrd Mat Min Machines Accessed 2 | . 1 1 Terminals 1 | . 1 . Fabricators . | . . . Repair Stations . | . . . Recycling Units . | . . . Scanalyzers . | . . . Garrison Access . | . . . Total Hacks 3 | . 2 1 Successful 2 | . 1 1 Failed 1 | . 1 . Catastrophic 1 | . 1 . Database Lockouts . | . . . Manual 2 | . 2 . Terminals 2 | . 2 . Fabricators . | . . . Repair Stations . | . . . Recycling Units . | . . . Scanalyzers . | . . . Garrison Access . | . . . Terminal Hacks 2 | . 1 1 Open Door 1 | . . 1 Zone Layout 1 | . 1 . Fabricator Hacks . | . . . Repair Station Hacks . | . . . Recycling Unit Hacks . | . . . Scanalyzer . | . . . Garrison Access Hacks . | . . . Unauthorized Hacks . | . . . Terminals . | . . . Fabricators . | . . . Repair Stations . | . . . Recycling Units . | . . . Scanalyzers . | . . . Garrison Access . | . . . Data Cores Recovered 1 | . 1 . Used . | . . . Hacking Detections 1 | . 1 . Full Trace Events 1 | . 1 . Feedback Events 1 | . 1 . Corruption 1 | . 1 . Feedback Blocked . | . . . Robot Schematics Acquired . | . . . Robots Built . | . . . Authchips . | . . . Time . | . . . Total Robot Build Rating . | . . . Part Schematics Acquired . | . . . Parts Built . | . . . Authchips . | . . . Time . | . . . Total Part Build Rating . | . . . Parts Repaired . | . . . Time . | . . . Parts Recycled . | . . . Recycled Matter . | . . . Retrieved Matter . | . . . Retrieved Components . | . . . Parts Scanalyzed . | . . . Part Schematics Acquired . | . . . Parts Damaged . | . . . Bothacking | -11 -10 -10 ------------ Run | Yrd Mat Min Used RIF Installer . | . . . Robots Hacked 4 | . . 4 Non-combat 4 | . . 4 Combat . | . . . Robot Hacks Applied 4 | . . 4 parse_system 3 | . . 3 no_distress 1 | . . 1 Relay Couplers Released . | . . . Fabnet Peak Effective % . | . . . Robots Rewired . | . . . Allies Hacked . | . . . Hacks Repelled . | . . . Allies | -11 -10 -10 -------- Run | Yrd Mat Min Total Allies 3 | . . 3 Largest Group 3 | . . 3 Highest-Rated Group 40 | . . 40 Highest-Rated Ally 16 | . . 16 Total Orders . | . . . Ally Attacks 19 | . . 19 Total Damage 183 | . . 183 Kills 2 | . . 2 Allies Corrupted . | . . . Allies Melted . | . . . Intel | -11 -10 -10 ------- Run | Yrd Mat Min Robot Analysis Total . | . . . Derelict Logs Recovered 2 | . . 2 Drone Launches . | . . . Drone Recoveries . | . . . Exploration | -11 -10 -10 ------------- Run | Yrd Mat Min Turns Passed 1486 | 42 441 1003 Spaces Moved 698 | 35 216 447 Core 4 | 4 . . Treads . | . . . Legs 578 | . 131 447 Wheels 116 | 31 85 . Hover . | . . . Flight . | . . . Fastest Speed 50 | 50 80 190 Average Speed 172 | 76 151 190 Slowest Speed 190 | 80 190 190 Overloaded Moves . | . . . Propulsion Burnouts . | . . . Robots Hopped . | . . . Cave-ins Triggered . | . . . Exploration Rate (%) 37 | 3 22 87 Regions Visited 2 Branch Regions 1 Pre-discovered Areas . | . . . Known Exits Taken . | . . . Unknown Exits Taken 2 | 1 1 . Scrap Searched 2 | . . 2 Spaces Dug . | . . . Terrain Destroyed 72 | . . 72 Melee . | . . . Projectile . | . . . AOE 72 | . . 72 Terrain Rammed . | . . . Walls Destroyed . | . . . Machines Disabled . | . . . Actions | -11 -10 -10 --------- Run | Yrd Mat Min Total 869 | 50 279 540 Wait 60 | . 14 46 Move 696 | 34 215 447 Hop . | . . . Pick Up 25 | 10 12 3 Fast Attach . | . . . Attach 11 | 6 2 3 Detach 1 | . . 1 Swap 6 | . 6 . Drop 3 | . 2 1 Fire 60 | . 27 33 Melee 5 | . . 5 Ram 1 | . 1 . Kick 1 | . . 1 Crush . | . . . Escape Stasis . | . . . Rewire . | . . . Trap . | . . . Miscellaneous . | . . . Route ------- -11/Scrapyard -10/Materials -10/Mines (discovered 4 exits: [*Mat x2] / [*Exi] / [*Sub]) History --------- Turn | Location | Event 15 | -11/Scrapyard | Discovered new exit (range 16) 43 | -11/Scrapyard | Entered Materials 269 | -10/Materials | Discovered new exit (range 4) 315 | -10/Materials | Build established: Mutant 484 | -10/Materials | Entered Mines 569 | -10/Mines | Discovered new exit (range 5) 712 | -10/Mines | Discovered new exit (range 13) 1012 | -10/Mines | Received a Rocket Launcher from a helpful Derelict 1068 | -10/Mines | Discovered new exit (range 6) 1131 | -10/Mines | Deemed a non-threat by the Exiles lab entrance 1133 | -10/Mines | Discovered new exit (range 5) 1284 | -10/Mines | Assisted by bots powering up and referring to "LRC-V3" 1286 | -10/Mines | Learned location of 1 exit from Materials 1403 | -10/Mines | Found the Drone Emporium 1417 | -10/Mines | Found Prototype Device 1430 | -10/Mines | Assembled infested the area 1460 | -10/Mines | Core integrity fell below 50% 1481 | -10/Mines | Core integrity fell below 20% 1487 | -10/Mines | Destroyed by as-55073 with Assembled Heavy Rifle Last Messages --------------- 01469_ as-74810 destroyed. 01471_ as-42278 destroyed. 01471_ Destroyed Asb. F-torch. 01473_ The unstable cave ceiling collapses. 01473_ Knocked back. 01473_ as-94025 destroyed. 01473_ as-96918 destroyed. 01477_ Imp. Aluminum Leg destroyed. 01477_ Destroyed Imp. Aluminum Leg. 01479_ as-20392 destroyed. 01479_ as-65715 destroyed. 01481_ as-70138 destroyed. 01481_ as-01569 destroyed. 01481_ Destroyed Asb. Hover Unit. 01483_ as-80022 destroyed. 01485_ as-96239 destroyed. 01486_ The unstable cave ceiling collapses. 01486_ D-53 Grenadier suffers critical hit (Burn). 01487_ The unstable cave ceiling collapses. 01487_ R6-K56(g) destroyed. Map ----- +----------------------------------------------------+ | ?# #????????????????????## | | ?# #?????????????????????## ##### | | ?# ##?????????????????????# ## #???? | | ?# ##???????############## ### #??? | | ?# #???????# #?# #?? | | ?# #???????# ##############?# #?? | | ?# #???????#=#?????????????? ? | | ?# #???????#%#?????????????# | | ?# #???????#=#?????????????## ## | | ?# ##???????# #??????????????## ##? | | ?# #????????# #???????????????######??? | | ?# #???###### ############????????????? | | ?# #???# #????????????? | | ?## ##??# ! #????????????? | | ??## #### ########## ????????????? | | ???## #??????## d ### #??????? | | ????# ######## d #?????? | | ????# ######""## #?????? | | ????## ##???#" # ##?????? | | ?????####????#" ] #??????? | | ?????????????#" % #?????? | | ?????????????#" ????? | | ?????????????##""# ??? | | ???????????### # ??? | | ??????????## # * %* ??? | | ??????????# @ %[ #####?# ???? | | ??????????# ##????? #???? | | ??????????# % ####?????? #????? | | ??????# ##????????? ????### | | ?????# # ##?????????????????# | | ?????# ?# #??????????????????# | | ?????# ?? ##??????????????????# | | ?????## ??? ##?????????????????????? | | ??????#???# #??????????????????????? | | ??????????# a ???????????????????????? | | ?????????? #???????????????????????? | | ?????????# #????????????????????????? | | ?????????# a# #????????????????????????? | | ??????????# % ?????????????????????????? | | ????????????? ?????????????????????????? | | ??????????????? ?????????????????????????? | | ?????????????????????????????????????????? | | ?????????????????????????????????????????? | | ?????????????????????????????????????????? | | ?????????????????????????????????????????? | | ?????????????????????????????????????????? | | ?????????????????????????????????????????? | | | | | | | +----------------------------------------------------+ Best States ------------- Heat Dissipation 25 Energy Generation 10 Energy Capacity 250 Matter Stores 300 Matter Capacity 300 Sight Range 16 Terrain Scan Density 10 Evasion (%) 44 Item Schematics ----------------- None Robot Schematics ------------------ None Fabricated ------------ Nothing Alien Tech Used ----------------- None Achievements -------------- None Challenges ------------ None Game ------ Seed TrackerPulseCannon Manual? 0 Play Time 00:13:40 Cumulative 9.3 hours Start 2025.01.19 @ 23:40:21 End 2025.01.19 @ 23:53:42 Sessions 1 Manual Loads 0 Difficulty Rogue Special Mode None Game No. 16 Rogue 16 Adventurer 0 Explorer 0 Win Type - Total 0 Types 0/0/0/0/0/0/0/0/0 Lore% 16 Gallery% 13 Achievement% 22 Wizard Run 0 Options --------- Layout 0 ASCII 0 Keyboard 1 Movement Numpad Keybinds 0 Fullscreen 1 Font 18/SmallcapsGlow Map View 76x50 Zoom Use 0% Tactical HUD 1 Map Filters NONE Filters NONE Steam 1 RUN: 2e360316-a9a4-4444-ac36-f5c3450b2f97